[Event "*** SCC Grand Prix: Titled Tuesday Blitz"]
[Site "Chess.com"]
[Date "2020.07.07"]
[Round "10"]
[White "TioCridineno"]
[Black "zajka-molotok"]
[Result "1/2-1/2"]
[WhiteElo "2151"]
[BlackElo "2426"]
[TimeControl "180+1"]
[EndTime "12:00:01 PDT"]
[Termination "Game drawn by repetition"]

1. e4 {[%clk 0:03:00.9]} 1... d6 {[%clk 0:02:59.8]} 2. d4 {[%clk 0:02:59.7]}
2... Nf6 {[%clk 0:02:59.9]} 3. Nc3 {[%clk 0:02:59.1]} 3... c6 {[%clk 0:02:59.7]}
4. a4 {[%clk 0:02:57.4]} 4... e5 {[%clk 0:02:58]} 5. Nf3 {[%clk 0:02:56.4]} 5...
Nbd7 {[%clk 0:02:55]} 6. Be2 {[%clk 0:02:56.5]} 6... Be7 {[%clk 0:02:54.2]} 7.
O-O {[%clk 0:02:57.1]} 7... O-O {[%clk 0:02:53.9]} 8. Re1 {[%clk 0:02:57.7]}
8... Re8 {[%clk 0:02:50.8]} 9. Bf1 {[%clk 0:02:57.6]} 9... Bf8 {[%clk
0:02:48.2]} 10. b3 {[%clk 0:02:56.7]} 10... exd4 {[%clk 0:02:38.9]} 11. Nxd4
{[%clk 0:02:56.3]} 11... Nc5 {[%clk 0:02:37.3]} 12. f3 {[%clk 0:02:54.1]} 12...
d5 {[%clk 0:02:32.3]} 13. exd5 {[%clk 0:02:53.7]} 13... Rxe1 {[%clk 0:02:29.6]}
14. Qxe1 {[%clk 0:02:52.9]} 14... Nxd5 {[%clk 0:02:26.6]} 15. Nxd5 {[%clk
0:02:52.9]} 15... Qxd5 {[%clk 0:02:26]} 16. Bb2 {[%clk 0:02:53.4]} 16... Bd7
{[%clk 0:02:10.5]} 17. Bc4 {[%clk 0:02:53.3]} 17... Qh5 {[%clk 0:02:08.1]} 18.
Rd1 {[%clk 0:02:50.7]} 18... Re8 {[%clk 0:02:05.8]} 19. Qf2 {[%clk 0:02:50.5]}
19... Bc8 {[%clk 0:01:58.7]} 20. Qg3 {[%clk 0:02:39.8]} 20... Qg6 {[%clk
0:01:45.5]} 21. Qxg6 {[%clk 0:02:25.6]} 21... hxg6 {[%clk 0:01:46.4]} 22. Kf2
{[%clk 0:02:13.9]} 22... Nd7 {[%clk 0:01:43.8]} 23. Re1 {[%clk 0:01:47]} 23...
Rxe1 {[%clk 0:01:42]} 24. Kxe1 {[%clk 0:01:45.7]} 24... Bd6 {[%clk 0:01:39.1]}
25. g3 {[%clk 0:01:44.8]} 25... Be5 {[%clk 0:01:30]} 26. Bc3 {[%clk 0:01:28.8]}
26... Nb6 {[%clk 0:01:24.4]} 27. Ne2 {[%clk 0:00:44.3]} 27... Nxc4 {[%clk
0:01:23.1]} 28. bxc4 {[%clk 0:00:43.6]} 28... Bb8 {[%clk 0:01:03.4]} 29. f4
{[%clk 0:00:42.3]} 29... f6 {[%clk 0:01:01.7]} 30. Kd2 {[%clk 0:00:39.4]} 30...
Be6 {[%clk 0:01:00.5]} 31. Kd3 {[%clk 0:00:39.2]} 31... Kf7 {[%clk 0:01:00.6]}
32. Nd4 {[%clk 0:00:39.6]} 32... Bd7 {[%clk 0:00:59.5]} 33. c5 {[%clk
0:00:38.1]} 33... Bc7 {[%clk 0:00:57.4]} 34. a5 {[%clk 0:00:37.6]} 34... Bh3
{[%clk 0:00:48.1]} 35. Ke3 {[%clk 0:00:33.2]} 35... Bf1 {[%clk 0:00:46.6]} 36.
Kf2 {[%clk 0:00:30.2]} 36... Bc4 {[%clk 0:00:45.7]} 37. Ke3 {[%clk 0:00:30.4]}
37... Bd8 {[%clk 0:00:43.7]} 38. h4 {[%clk 0:00:28.6]} 38... Be7 {[%clk
0:00:42.4]} 39. Bb4 {[%clk 0:00:25.7]} 39... Bd8 {[%clk 0:00:28.7]} 40. c3
{[%clk 0:00:24.9]} 40... g5 {[%clk 0:00:27.1]} 41. hxg5 {[%clk 0:00:24.2]} 41...
fxg5 {[%clk 0:00:27.7]} 42. Ke4 {[%clk 0:00:20.3]} 42... gxf4 {[%clk 0:00:26]}
43. gxf4 {[%clk 0:00:20.6]} 43... Bc7 {[%clk 0:00:24.1]} 44. Nf5 {[%clk
0:00:14.1]} 44... Bd5+ {[%clk 0:00:20.2]} 45. Ke3 {[%clk 0:00:13.4]} 45... Kf6
{[%clk 0:00:18.6]} 46. Nd6 {[%clk 0:00:13.7]} 46... Bxd6 {[%clk 0:00:14.9]} 47.
cxd6 {[%clk 0:00:13.9]} 47... Ke6 {[%clk 0:00:13]} 48. Bc5 {[%clk 0:00:14.4]}
48... b6 {[%clk 0:00:12.4]} 49. axb6 {[%clk 0:00:14.2]} 49... axb6 {[%clk
0:00:13.3]} 50. Bxb6 {[%clk 0:00:14.6]} 50... Kxd6 {[%clk 0:00:13.6]} 51. Bd4
{[%clk 0:00:15.2]} 51... g6 {[%clk 0:00:13.8]} 52. Be5+ {[%clk 0:00:15.5]} 52...
Kd7 {[%clk 0:00:13.5]} 53. Kd4 {[%clk 0:00:15.9]} 53... Be6 {[%clk 0:00:13.6]}
54. Kc5 {[%clk 0:00:16.2]} 54... Bf5 {[%clk 0:00:14]} 55. Bd6 {[%clk 0:00:15.9]}
55... Be4 {[%clk 0:00:13.7]} 56. Be5 {[%clk 0:00:16.2]} 56... Bf5 {[%clk
0:00:13.5]} 57. Bd6 {[%clk 0:00:16.3]} 57... Be6 {[%clk 0:00:13.3]} 58. Be5
{[%clk 0:00:16.7]} 58... Bd5 {[%clk 0:00:13.6]} 59. Bd6 {[%clk 0:00:14.9]} 59...
Ke6 {[%clk 0:00:13.1]} 60. Be5 {[%clk 0:00:14.7]} 60... Kf5 {[%clk 0:00:13.3]}
61. Bc7 {[%clk 0:00:15]} 61... Bf3 {[%clk 0:00:13.4]} 62. Kd4 {[%clk 0:00:15.3]}
62... Bd5 {[%clk 0:00:12.9]} 63. Bb8 {[%clk 0:00:15.5]} 63... Bg2 {[%clk
0:00:12.7]} 64. Bc7 {[%clk 0:00:15.6]} 64... Ke6 {[%clk 0:00:12.3]} 65. Bb8
{[%clk 0:00:15.8]} 65... Kd7 {[%clk 0:00:12.1]} 66. Be5 {[%clk 0:00:15.6]} 66...
Ke6 {[%clk 0:00:12.2]} 67. Kc5 {[%clk 0:00:16]} 67... g5 {[%clk 0:00:10.8]} 68.
Bb8 {[%clk 0:00:12.9]} 68... g4 {[%clk 0:00:11]} 69. Kd4 {[%clk 0:00:13.3]}
69... Kf5 {[%clk 0:00:11.1]} 70. Ke3 {[%clk 0:00:13.7]} 70... Bd5 {[%clk
0:00:10.6]} 71. Kf2 {[%clk 0:00:13.9]} 71... Bf3 {[%clk 0:00:09.7]} 72. Kg3
{[%clk 0:00:14.2]} 72... Ke4 {[%clk 0:00:09.7]} 73. Be5 {[%clk 0:00:14.7]} 73...
Kd5 {[%clk 0:00:08.5]} 74. Bf6 {[%clk 0:00:14.8]} 74... c5 {[%clk 0:00:08]} 75.
Bg7 {[%clk 0:00:15]} 75... Ke4 {[%clk 0:00:07.5]} 76. Bh8 {[%clk 0:00:15.1]}
76... c4 {[%clk 0:00:07.7]} 77. Bg7 {[%clk 0:00:15.3]} 77... Kf5 {[%clk
0:00:07.9]} 78. Bh8 {[%clk 0:00:15.3]} 78... Ke4 {[%clk 0:00:08.8]} 79. Bg7
{[%clk 0:00:15.3]} 79... Kf5 {[%clk 0:00:08.8]} 80. Bh8 {[%clk 0:00:15.8]} 80...
Kg6 {[%clk 0:00:09.1]} 81. Bd4 {[%clk 0:00:15.8]} 81... Kf5 {[%clk 0:00:10]} 82.
Be5 {[%clk 0:00:16.2]} 82... Ke4 {[%clk 0:00:10.2]} 83. Bf6 {[%clk 0:00:16.4]}
83... Kf5 {[%clk 0:00:10.6]} 84. Bh8 {[%clk 0:00:16.6]} 1/2-1/2

[Event "*** SCC Grand Prix: Titled Tuesday Blitz"]
[Site "Chess.com"]
[Date "2020.07.07"]
[Round "10"]
[White "RaunakSadhwani2005"]
[Black "PaulfromSPb"]
[Result "1-0"]
[WhiteElo "2936"]
[BlackElo "2646"]
[TimeControl "180+1"]
[EndTime "12:00:16 PDT"]
[Termination "RaunakSadhwani2005 won by resignation"]

1. d4 {[%clk 0:03:00.9]} 1... Nf6 {[%clk 0:02:59.4]} 2. Bf4 {[%clk 0:02:59.9]}
2... d5 {[%clk 0:02:54.2]} 3. e3 {[%clk 0:02:59.3]} 3... c5 {[%clk 0:02:54.5]}
4. c3 {[%clk 0:02:57.4]} 4... Qb6 {[%clk 0:02:54.5]} 5. Qb3 {[%clk 0:02:56.7]}
5... c4 {[%clk 0:02:51.4]} 6. Qc2 {[%clk 0:02:56.7]} 6... Nc6 {[%clk 0:02:49.2]}
7. Nd2 {[%clk 0:02:41]} 7... g6 {[%clk 0:02:48.6]} 8. Ngf3 {[%clk 0:02:36.3]}
8... Bf5 {[%clk 0:02:48.1]} 9. Qc1 {[%clk 0:02:36.9]} 9... Nh5 {[%clk 0:02:42]}
10. Bg3 {[%clk 0:02:31.5]} 10... Bg7 {[%clk 0:02:40.3]} 11. b3 {[%clk
0:02:25.6]} 11... cxb3 {[%clk 0:02:36.6]} 12. axb3 {[%clk 0:02:26.5]} 12... Rc8
{[%clk 0:02:35.8]} 13. Qb2 {[%clk 0:02:08.6]} 13... O-O {[%clk 0:02:30.1]} 14.
Be2 {[%clk 0:02:08.6]} 14... Rfe8 {[%clk 0:02:21.3]} 15. O-O {[%clk 0:01:52.9]}
15... Nxg3 {[%clk 0:02:19.6]} 16. hxg3 {[%clk 0:01:53.8]} 16... e5 {[%clk
0:02:19]} 17. dxe5 {[%clk 0:01:54.3]} 17... Nxe5 {[%clk 0:02:18.9]} 18. Nd4
{[%clk 0:01:54.4]} 18... Bd7 {[%clk 0:02:16.1]} 19. Rfc1 {[%clk 0:01:53]} 19...
a6 {[%clk 0:02:14.9]} 20. Qa3 {[%clk 0:01:49.2]} 20... h5 {[%clk 0:02:02.6]} 21.
N2f3 {[%clk 0:01:43.2]} 21... Ng4 {[%clk 0:01:58.4]} 22. Qa5 {[%clk 0:01:36.9]}
22... Qd6 {[%clk 0:01:55.6]} 23. Rd1 {[%clk 0:01:10.4]} 23... Bh6 {[%clk
0:01:53.6]} 24. Nc2 {[%clk 0:00:52.9]} 24... Rc5 {[%clk 0:01:51.5]} 25. Qb4
{[%clk 0:00:49.8]} 25... Bf5 {[%clk 0:01:46.1]} 26. Bd3 {[%clk 0:00:41.9]} 26...
Be6 {[%clk 0:01:36.4]} 27. Ra5 {[%clk 0:00:35.7]} 27... Rec8 {[%clk 0:01:36]}
28. Be2 {[%clk 0:00:24.2]} 28... Bf8 {[%clk 0:01:34.9]} 29. Rxc5 {[%clk
0:00:23.2]} 29... Rxc5 {[%clk 0:01:33]} 30. Ncd4 {[%clk 0:00:22.7]} 30... Bc8
{[%clk 0:01:28.8]} 31. Ng5 {[%clk 0:00:20]} 31... Qc7 {[%clk 0:01:18]} 32. c4
{[%clk 0:00:19]} 32... Rxc4 {[%clk 0:01:13.6]} 33. Qd2 {[%clk 0:00:18.5]} 33...
Rc3 {[%clk 0:01:08.1]} 34. Ndf3 {[%clk 0:00:18.9]} 34... Rc2 {[%clk 0:00:59.9]}
35. Qd3 {[%clk 0:00:17.4]} 35... Bf5 {[%clk 0:00:59.4]} 36. e4 {[%clk
0:00:14.2]} 36... dxe4 {[%clk 0:00:58.4]} 37. Nxe4 {[%clk 0:00:15.1]} 37... Rc1
{[%clk 0:00:28.6]} 38. Nd4 {[%clk 0:00:13.4]} 38... Rxd1+ {[%clk 0:00:26]} 39.
Bxd1 {[%clk 0:00:14.3]} 39... Bc8 {[%clk 0:00:24.9]} 40. Bxg4 {[%clk 0:00:13.5]}
40... hxg4 {[%clk 0:00:23.4]} 41. Nf6+ {[%clk 0:00:13.1]} 41... Kh8 {[%clk
0:00:23.7]} 42. Nd5 {[%clk 0:00:10.7]} 42... Qe5 {[%clk 0:00:22.5]} 43. Ne3
{[%clk 0:00:10.4]} 43... Bc5 {[%clk 0:00:18.4]} 44. Ndc2 {[%clk 0:00:10.9]}
44... Kg7 {[%clk 0:00:17.1]} 45. b4 {[%clk 0:00:11.3]} 45... Be7 {[%clk
0:00:15]} 46. Qd1 {[%clk 0:00:08.7]} 46... Qe4 {[%clk 0:00:13.4]} 47. Qa1+
{[%clk 0:00:07.7]} 47... Bf6 {[%clk 0:00:13.5]} 48. Qd1 {[%clk 0:00:05.5]} 48...
Be6 {[%clk 0:00:13.4]} 49. Qd2 {[%clk 0:00:06]} 49... b6 {[%clk 0:00:11.6]} 50.
Ne1 {[%clk 0:00:06.5]} 50... Qb1 {[%clk 0:00:09.5]} 51. Kh2 {[%clk 0:00:05.9]}
51... Qb2 {[%clk 0:00:09.2]} 52. Qd1 {[%clk 0:00:03.7]} 52... Qxb4 {[%clk
0:00:08.8]} 53. Nd3 {[%clk 0:00:03.7]} 53... Qd4 {[%clk 0:00:08.7]} 54. Qe2
{[%clk 0:00:04.3]} 54... a5 {[%clk 0:00:08.8]} 55. Nf4 {[%clk 0:00:04.7]} 55...
Bd7 {[%clk 0:00:07.9]} 56. Nxg4 {[%clk 0:00:05.2]} 56... Bxg4 {[%clk 0:00:06.6]}
57. Qxg4 {[%clk 0:00:06.1]} 57... Qe5 {[%clk 0:00:06]} 58. Qd1 {[%clk
0:00:05.3]} 58... b5 {[%clk 0:00:06.1]} 59. Qd7 {[%clk 0:00:05.4]} 59... a4
{[%clk 0:00:06.3]} 60. Nd3 {[%clk 0:00:03.9]} 60... Qd4 {[%clk 0:00:05.8]} 61.
Qxb5 {[%clk 0:00:03.5]} 61... a3 {[%clk 0:00:05.5]} 62. Nb4 {[%clk 0:00:04.4]}
62... Qb2 {[%clk 0:00:04.9]} 63. Qc4 {[%clk 0:00:04.7]} 63... Bc3 {[%clk
0:00:04.8]} 64. Na2 {[%clk 0:00:05]} 64... Bf6 {[%clk 0:00:05]} 65. f3 {[%clk
0:00:05.9]} 65... Qb1 {[%clk 0:00:04.3]} 66. Qd5 {[%clk 0:00:06.2]} 66... Qb2
{[%clk 0:00:03.6]} 67. f4 {[%clk 0:00:06.6]} 67... Qc2 {[%clk 0:00:03.5]} 68. g4
{[%clk 0:00:06.8]} 68... Qb1 {[%clk 0:00:03.5]} 69. g5 {[%clk 0:00:07.2]} 69...
Bb2 {[%clk 0:00:03.9]} 70. Kg3 {[%clk 0:00:07.7]} 70... Qf1 {[%clk 0:00:03.8]}
71. Qb3 {[%clk 0:00:05.9]} 71... Qe1+ {[%clk 0:00:03.6]} 72. Kf3 {[%clk
0:00:05.8]} 72... Qf1+ {[%clk 0:00:03.5]} 73. Kg3 {[%clk 0:00:06.2]} 73... Qe1+
{[%clk 0:00:03.7]} 74. Kf3 {[%clk 0:00:06.7]} 74... Qe7 {[%clk 0:00:04.6]} 75.
g3 {[%clk 0:00:06.6]} 75... Qc7 {[%clk 0:00:05.1]} 76. Qd5 {[%clk 0:00:06.7]}
76... Qc2 {[%clk 0:00:04.9]} 77. g4 {[%clk 0:00:07]} 77... Qc1 {[%clk
0:00:04.9]} 78. Nxc1 {[%clk 0:00:06.3]} 78... Bxc1 {[%clk 0:00:05]} 79. Qa2
{[%clk 0:00:07.2]} 79... Bb2 {[%clk 0:00:04.7]} 80. f5 {[%clk 0:00:07.6]} 80...
Kf8 {[%clk 0:00:05.1]} 81. f6 {[%clk 0:00:08]} 81... Ke8 {[%clk 0:00:05.3]} 82.
Ke4 {[%clk 0:00:08.4]} 82... Kd7 {[%clk 0:00:06.2]} 83. Qxf7+ {[%clk 0:00:07.6]}
1-0

[Event "*** SCC Grand Prix: Titled Tuesday Blitz"]
[Site "Chess.com"]
[Date "2020.07.07"]
[Round "10"]
[White "seorobert1971"]
[Black "kirillshevchenko"]
[Result "1/2-1/2"]
[WhiteElo "2713"]
[BlackElo "2941"]
[TimeControl "180+1"]
[EndTime "12:00:20 PDT"]
[Termination "Game drawn by repetition"]

1. c4 {[%clk 0:03:00.9]} 1... e5 {[%clk 0:02:58.5]} 2. Nc3 {[%clk 0:03:01.1]}
2... Nf6 {[%clk 0:02:58.8]} 3. Nf3 {[%clk 0:03:01.5]} 3... Nc6 {[%clk
0:02:58.9]} 4. g3 {[%clk 0:03:01.8]} 4... Bb4 {[%clk 0:02:58]} 5. Bg2 {[%clk
0:03:01.1]} 5... O-O {[%clk 0:02:58.2]} 6. O-O {[%clk 0:03:01.1]} 6... Bxc3
{[%clk 0:02:58.4]} 7. bxc3 {[%clk 0:03:01]} 7... e4 {[%clk 0:02:58.7]} 8. Ng5
{[%clk 0:03:01]} 8... Re8 {[%clk 0:02:57.6]} 9. d3 {[%clk 0:03:00.9]} 9... e3
{[%clk 0:02:44.3]} 10. fxe3 {[%clk 0:02:54.5]} 10... h6 {[%clk 0:02:28.1]} 11.
Nf3 {[%clk 0:02:33.9]} 11... d5 {[%clk 0:02:20.8]} 12. cxd5 {[%clk 0:02:26.9]}
12... Nxd5 {[%clk 0:02:21.7]} 13. e4 {[%clk 0:02:24.6]} 13... Nxc3 {[%clk
0:02:20.7]} 14. Qc2 {[%clk 0:02:24.3]} 14... Nb5 {[%clk 0:02:07.6]} 15. Bb2
{[%clk 0:02:24.2]} 15... Bg4 {[%clk 0:01:49.3]} 16. a4 {[%clk 0:02:16.4]} 16...
Nbd4 {[%clk 0:01:41.2]} 17. Nxd4 {[%clk 0:02:16]} 17... Nxd4 {[%clk 0:01:41.4]}
18. Bxd4 {[%clk 0:02:16]} 18... Qxd4+ {[%clk 0:01:42.3]} 19. Kh1 {[%clk
0:02:16.3]} 19... Re7 {[%clk 0:01:36.5]} 20. Bf3 {[%clk 0:02:13.3]} 20... Be6
{[%clk 0:01:34.4]} 21. Rfc1 {[%clk 0:02:11]} 21... Rd8 {[%clk 0:01:32.8]} 22.
Qc5 {[%clk 0:02:08.7]} 22... Qxc5 {[%clk 0:01:18.9]} 23. Rxc5 {[%clk 0:02:09.6]}
23... Rd4 {[%clk 0:01:16.9]} 24. a5 {[%clk 0:02:06.9]} 24... b6 {[%clk
0:01:07.3]} 25. Rc3 {[%clk 0:02:06.4]} 25... Rb4 {[%clk 0:01:03.5]} 26. Rac1
{[%clk 0:02:01.3]} 26... c5 {[%clk 0:01:02.4]} 27. axb6 {[%clk 0:02:01.1]} 27...
axb6 {[%clk 0:01:03.3]} 28. Ra3 {[%clk 0:02:01.1]} 28... g5 {[%clk 0:01:02.2]}
29. g4 {[%clk 0:01:54.7]} 29... Kg7 {[%clk 0:00:55.9]} 30. Kg2 {[%clk
0:01:54.7]} 30... Rb2 {[%clk 0:00:54.8]} 31. Kg3 {[%clk 0:01:53.7]} 31... Rc7
{[%clk 0:00:52.1]} 32. Rac3 {[%clk 0:01:49.7]} 32... Ra7 {[%clk 0:00:51.5]} 33.
h4 {[%clk 0:01:47.6]} 33... Kf6 {[%clk 0:00:51.5]} 34. R3c2 {[%clk 0:01:45.3]}
34... Rxc2 {[%clk 0:00:50]} 35. Rxc2 {[%clk 0:01:45.4]} 35... Ke5 {[%clk
0:00:50.5]} 36. hxg5 {[%clk 0:01:44.6]} 36... hxg5 {[%clk 0:00:51.4]} 37. Rb2
{[%clk 0:01:41.6]} 37... Rb7 {[%clk 0:00:50.1]} 38. e3 {[%clk 0:01:40.2]} 38...
b5 {[%clk 0:00:50.1]} 39. Kf2 {[%clk 0:01:38.7]} 39... b4 {[%clk 0:00:49.4]} 40.
Ke1 {[%clk 0:01:37.9]} 40... Ra7 {[%clk 0:00:48.4]} 41. Kd2 {[%clk 0:01:32.6]}
41... Ra1 {[%clk 0:00:40.4]} 42. Bd1 {[%clk 0:01:32.2]} 42... Ra8 {[%clk
0:00:31.8]} 43. Rc2 {[%clk 0:01:31.4]} 43... Kd6 {[%clk 0:00:31.2]} 44. Rb2
{[%clk 0:01:31.1]} 44... Rh8 {[%clk 0:00:30.6]} 45. d4 {[%clk 0:01:25.8]} 45...
Rh2+ {[%clk 0:00:29.1]} 46. Kc1 {[%clk 0:01:25.9]} 46... Rxb2 {[%clk 0:00:28]}
47. Kxb2 {[%clk 0:01:26.8]} 47... c4 {[%clk 0:00:28.5]} 48. Be2 {[%clk
0:01:22.6]} 48... c3+ {[%clk 0:00:26.8]} 49. Kc2 {[%clk 0:01:22.6]} 49... Bd7
{[%clk 0:00:24.7]} 50. e5+ {[%clk 0:01:16]} 50... Kd5 {[%clk 0:00:21.5]} 51.
Bf3+ {[%clk 0:01:15.2]} 51... Ke6 {[%clk 0:00:21.3]} 52. Be4 {[%clk 0:01:06.9]}
52... Ba4+ {[%clk 0:00:21.2]} 53. Kd3 {[%clk 0:01:03.5]} 53... Bb5+ {[%clk
0:00:18.1]} 54. Kc2 {[%clk 0:01:03.3]} 54... Bc4 {[%clk 0:00:16.8]} 55. Bf3
{[%clk 0:00:55]} 55... Bb5 {[%clk 0:00:14.1]} 56. Be4 {[%clk 0:00:52.6]} 56...
Be2 {[%clk 0:00:14]} 57. Bf5+ {[%clk 0:00:49.5]} 57... Kd5 {[%clk 0:00:13.9]}
58. Bc8 {[%clk 0:00:37.7]} 58... Ke4 {[%clk 0:00:08.1]} 59. Bf5+ {[%clk
0:00:30.7]} 59... Kxe3 {[%clk 0:00:08.2]} 60. d5 {[%clk 0:00:30.9]} 60... Bb5
{[%clk 0:00:04.7]} 61. Kb3 {[%clk 0:00:26.5]} 61... Kd4 {[%clk 0:00:03.5]} 62.
Kxb4 {[%clk 0:00:24.3]} 62... Bd3 {[%clk 0:00:01.9]} 63. d6 {[%clk 0:00:19.7]}
63... Bxf5 {[%clk 0:00:01.8]} 64. gxf5 {[%clk 0:00:19.5]} 64... c2 {[%clk
0:00:02.7]} 65. d7 {[%clk 0:00:19.7]} 65... c1=Q {[%clk 0:00:03.6]} 66. d8=Q+
{[%clk 0:00:19.1]} 66... Ke4 {[%clk 0:00:04]} 67. e6 {[%clk 0:00:18]} 67... Qb2+
{[%clk 0:00:03.3]} 68. Ka4 {[%clk 0:00:16.2]} 68... fxe6 {[%clk 0:00:02.4]} 69.
fxe6 {[%clk 0:00:16]} 69... Qa2+ {[%clk 0:00:02.1]} 70. Kb5 {[%clk 0:00:15.8]}
70... Qb3+ {[%clk 0:00:02.1]} 71. Kc5 {[%clk 0:00:13.9]} 71... Qa3+ {[%clk
0:00:02.2]} 72. Kc6 {[%clk 0:00:13.4]} 72... Qa4+ {[%clk 0:00:02.5]} 73. Kd6
{[%clk 0:00:12.6]} 73... g4 {[%clk 0:00:02.7]} 74. e7 {[%clk 0:00:11.3]} 74...
Qb4+ {[%clk 0:00:02.5]} 75. Kc7 {[%clk 0:00:10.5]} 75... Qc5+ {[%clk 0:00:02.2]}
76. Kb7 {[%clk 0:00:10.7]} 76... Qb5+ {[%clk 0:00:02.3]} 77. Ka7 {[%clk
0:00:10.7]} 77... Qa4+ {[%clk 0:00:02]} 78. Kb6 {[%clk 0:00:10.8]} 78... Qb4+
{[%clk 0:00:02.2]} 79. Kc6 {[%clk 0:00:11]} 79... Qc4+ {[%clk 0:00:02.7]} 80.
Kd6 {[%clk 0:00:11]} 80... Qd5+ {[%clk 0:00:03]} 81. Kc7 {[%clk 0:00:10.6]}
81... Qc5+ {[%clk 0:00:03.9]} 82. Kb7 {[%clk 0:00:10]} 82... Qb5+ {[%clk
0:00:04.3]} 83. Qb6 {[%clk 0:00:09]} 83... Qd7+ {[%clk 0:00:04]} 84. Qc7 {[%clk
0:00:09]} 84... Qb5+ {[%clk 0:00:04.3]} 85. Kc8 {[%clk 0:00:09.4]} 85... Qe8+
{[%clk 0:00:03.9]} 86. Qd8 {[%clk 0:00:08.5]} 86... Qc6+ {[%clk 0:00:04.2]} 87.
Kb8 {[%clk 0:00:09.2]} 87... Qb5+ {[%clk 0:00:04.4]} 88. Kc7 {[%clk 0:00:09.9]}
88... Qc5+ {[%clk 0:00:04.4]} 1/2-1/2